Workbook

Sheet Options Calculator
F1: Options Strategy Calculator
A2: Use Barchart --> Options Prices to insert symbol in B3
B3: =_xll.cmdty.udfs.BCO(B5:D5,C7:M7,"Strikes=20","Dynamic=False","HighlightStrikes=True","AvailableNumberOfStrikes=20","NumberOfExpirations=1","Symbol=ESZ23","Display=SideBySide") -> Options | AB3: Strategy Setup | AH3: Strategy Outlook | AK3: Breakevens/Probabilities/IV | AW3: 111111
B4: Symbol | C4: Type | D4: Expiration Date | E4: DTE | F4: Last | G4: Timestamp | AB4: Underlying Price | AC4: 4473.5 | AH4: Strategy Premium | AI4: ='Sheet 1'!$X$3 -> 24.75 | AK4: Breakeven | AM4: Probability Above | AN4: Probability Below
B5: =_xll.cmdty.udfs.BCOE("ESU3","AvailableNumberOfStrikes=20") -> ESU3 | C5: American | D5: 2023-09-15 | E5: 9 | F5: =_xll.cmdty.udfs.BCD(B$5,F$4) -> 4477.75 | G5: =_xll.cmdty.udfs.BCD(B$5,G$4) -> 45180.43932 | AB5: Contract Size | AC5: =_xll.BEF_PointValue($B$5) -> 50 | AH5: Max Prof | AI5: ='Sheet 1'!$N$3 -> 1237.5 | AK5: Breakeven Points | AL5: ='Sheet 1'!$N$6 ->  | AM5: =IFERROR(1-NORMSDIST(LN(AL5/$AC$4)/($AN$11*SQRT($E$5/365))),"") ->  | AN5: =IFERROR(NORMSDIST(LN($AL$5/$AC$4)/($AN$11*SQRT($E$5/365))),"") -> 
B6: Calls | O6: Puts | AB6: Position Size | AC6: -1 | AD6: -1 | AE6: 0 | AF6: 0 | AH6: Max Loss | AI6: ='Sheet 1'!$N$4 -> Infinite | AL6: ='Sheet 1'!$N$7 ->  | AM6: =IFERROR(1-NORMSDIST(LN(AL6/$AC$4)/($AN$11*SQRT($E$5/365))),"") ->  | AN6: =IFERROR(NORMSDIST(LN($AL$6/$AC$4)/($AN$11*SQRT($E$5/365))),"") -> 
B7: Symbol | C7: Last | D7: ImpliedVolatility | E7: Bid | F7: Ask | G7: Timestamp | H7: Delta | I7: Gamma | J7: Vega | K7: Theta | L7: Volume | M7: Change | N7: Strike | O7: Symbol | P7: Last | Q7: ImpliedVolatility | R7: Bid | S7: Ask | T7: Timestamp | U7: Delta | V7: Gamma | W7: Vega | X7: Theta | Y7: Volume | Z7: Change | AB7: Call/Put | AC7: Call | AD7: Put | AE7: Call | AF7: Put | AH7: R/R Ratio | AI7: =IFERROR('Sheet 1'!N5,"Undefinied") -> Undefinied | AL7: ='Sheet 1'!$N$8 -> 4455.25 | AM7: =IFERROR(1-NORMSDIST(LN(AL7/$AC$4)/($AN$11*SQRT($E$5/365))),"") -> 0.5923418965 | AN7: =IFERROR(NORMSDIST(LN($AL$7/$AC$4)/($AN$11*SQRT($E$5/365))),"") -> 0.4076581035
B8: =_xll.cmdty.udfs.BCSTL("ESU2023|4410C") -> ESU23|4410C | C8: =_xll.cmdty.udfs.BCD($B8,C$7) -> 71.75 | D8: =_xll.cmdty.udfs.BCOBS($B8,D$7,B$5,C$5,D$5) -> 0.1302542744 | E8: =_xll.cmdty.udfs.BCD($B8,E$7) -> 72 | F8: =_xll.cmdty.udfs.BCD($B8,F$7) -> 72.75 | G8: =_xll.cmdty.udfs.BCD($B8,G$7) -> 45180.4377 | H8: =_xll.cmdty.udfs.BCOBS($B8,H$7,B$5,C$5,D$5) -> 0.8695525226 | I8: =_xll.cmdty.udfs.BCOBS($B8,I$7,B$5,C$5,D$5) -> 0.003266323997 | J8: =_xll.cmdty.udfs.BCOBS($B8,J$7,B$5,C$5,D$5) -> 0.8145953659 | K8: =_xll.cmdty.udfs.BCOBS($B8,K$7,B$5,C$5,D$5) -> -1.74559221 | L8: =_xll.cmdty.udfs.BCD($B8,L$7) -> 19 | M8: =_xll.cmdty.udfs.BCD($B8,M$7) -> 11.25 | N8: 4410 | O8: =_xll.cmdty.udfs.BCSTL("ESU2023|4410P") -> ESU23|4410P | P8: =_xll.cmdty.udfs.BCD($O8,P$7) -> 4.65 | Q8: =_xll.cmdty.udfs.BCOBS($O8,Q$7,B$5,C$5,D$5) -> 0.136510601 | R8: =_xll.cmdty.udfs.BCD($O8,R$7) -> 4.75 | S8: =_xll.cmdty.udfs.BCD($O8,S$7) -> 4.85 | T8: =_xll.cmdty.udfs.BCD($O8,T$7) -> 45180.43681 | U8: =_xll.cmdty.udfs.BCOBS($O8,U$7,B$5,C$5,D$5) -> -0.1413890074 | V8: =_xll.cmdty.udfs.BCOBS($O8,V$7,B$5,C$5,D$5) -> 0.003266323997 | W8: =_xll.cmdty.udfs.BCOBS($O8,W$7,B$5,C$5,D$5) -> 0.8145953659 | X8: =_xll.cmdty.udfs.BCOBS($O8,X$7,B$5,C$5,D$5) -> -1.74714754 | Y8: =_xll.cmdty.udfs.BCD($O8,Y$7) -> 392 | Z8: =_xll.cmdty.udfs.BCD($O8,Z$7) -> -4.1 | AB8: Strike | AC8: 4540 | AD8: 4480 | AE8: 1100 | AF8: 1080 | AH8: Net Delta | AI8: =SUM(AC10:AF10) -> 0.4083564636 | AL8: ='Sheet 1'!$N$9 ->  | AM8: =IFERROR(1-NORMSDIST(LN(AL8/$AC$4)/($AN$11*SQRT($E$5/365))),"") ->  | AN8: =IFERROR(NORMSDIST(LN($AL$8/$AC$4)/($AN$11*SQRT($E$5/365))),"") -> 
B9: =_xll.cmdty.udfs.BCSTL("ESU2023|4420C") -> ESU23|4420C | C9: =_xll.cmdty.udfs.BCD($B9,C$7) -> 60.5 | D9: =_xll.cmdty.udfs.BCOBS($B9,D$7,B$5,C$5,D$5) -> 0.1039893169 | E9: =_xll.cmdty.udfs.BCD($B9,E$7) -> 63.25 | F9: =_xll.cmdty.udfs.BCD($B9,F$7) -> 64 | G9: =_xll.cmdty.udfs.BCD($B9,G$7) -> 45180.43073 | H9: =_xll.cmdty.udfs.BCOBS($B9,H$7,B$5,C$5,D$5) -> 0.8843805261 | I9: =_xll.cmdty.udfs.BCOBS($B9,I$7,B$5,C$5,D$5) -> 0.004101011126 | J9: =_xll.cmdty.udfs.BCOBS($B9,J$7,B$5,C$5,D$5) -> 1.022759733 | K9: =_xll.cmdty.udfs.BCOBS($B9,K$7,B$5,C$5,D$5) -> -1.318146073 | L9: =_xll.cmdty.udfs.BCD($B9,L$7) -> 4 | M9: =_xll.cmdty.udfs.BCD($B9,M$7) -> 8 | N9: 4420 | O9: =_xll.cmdty.udfs.BCSTL("ESU2023|4420P") -> ESU23|4420P | P9: =_xll.cmdty.udfs.BCD($O9,P$7) -> 6 | Q9: =_xll.cmdty.udfs.BCOBS($O9,Q$7,B$5,C$5,D$5) -> 0.1341626282 | R9: =_xll.cmdty.udfs.BCD($O9,R$7) -> 5.75 | S9: =_xll.cmdty.udfs.BCD($O9,S$7) -> 6.25 | T9: =_xll.cmdty.udfs.BCD($O9,T$7) -> 45180.43874 | U9: =_xll.cmdty.udfs.BCOBS($O9,U$7,B$5,C$5,D$5) -> -0.1758271361 | V9: =_xll.cmdty.udfs.BCOBS($O9,V$7,B$5,C$5,D$5) -> 0.004101011126 | W9: =_xll.cmdty.udfs.BCOBS($O9,W$7,B$5,C$5,D$5) -> 1.022759733 | X9: =_xll.cmdty.udfs.BCOBS($O9,X$7,B$5,C$5,D$5) -> -1.981315413 | Y9: =_xll.cmdty.udfs.BCD($O9,Y$7) -> 188 | Z9: =_xll.cmdty.udfs.BCD($O9,Z$7) -> -4.75 | AB9: Premium | AC9: =IF(AC6<>0,IF(AC$7="Call",INDEX($C$8:$P500,MATCH(AC$8,$N$8:$N$500,0),1),INDEX($C$8:$P500,MATCH(AC$8,$N$8:$N$500,0),14)),0) -> 2.5 | AD9: =IF(AD6<>0,IF(AD$7="Call",INDEX($C$8:$P500,MATCH(AD$8,$N$8:$N$500,0),1),INDEX($C$8:$P500,MATCH(AD$8,$N$8:$N$500,0),14)),0) -> 22.25 | AE9: =IF(AE6<>0,IF(AE$7="Call",INDEX($C$8:$P500,MATCH(AE$8,$N$8:$N$500,0),1),INDEX($C$8:$P500,MATCH(AE$8,$N$8:$N$500,0),14)),0) -> 0 | AF9: =IF(AF6<>0,IF(AF$7="Call",INDEX($C$8:$P500,MATCH(AF$8,$N$8:$N$500,0),1),INDEX($C$8:$P500,MATCH(AF$8,$N$8:$N$500,0),14)),0) -> 0 | AL9: ='Sheet 1'!$N$10 -> 4564.75 | AM9: =IFERROR(1-NORMSDIST(LN(AL9/$AC$4)/($AN$11*SQRT($E$5/365))),"") -> 0.1243002095 | AN9: =IFERROR(NORMSDIST(LN($AL$9/$AC$4)/($AN$11*SQRT($E$5/365))),"") -> 0.8756997905
B10: =_xll.cmdty.udfs.BCSTL("ESU2023|4425C") -> ESU23|4425C | C10: =_xll.cmdty.udfs.BCD($B10,C$7) -> 56.25 | D10: =_xll.cmdty.udfs.BCOBS($B10,D$7,B$5,C$5,D$5) -> 0.1050333033 | E10: =_xll.cmdty.udfs.BCD($B10,E$7) -> 59 | F10: =_xll.cmdty.udfs.BCD($B10,F$7) -> 59.5 | G10: =_xll.cmdty.udfs.BCD($B10,G$7) -> 45180.41509 | H10: =_xll.cmdty.udfs.BCOBS($B10,H$7,B$5,C$5,D$5) -> 0.8605194083 | I10: =_xll.cmdty.udfs.BCOBS($B10,I$7,B$5,C$5,D$5) -> 0.004532293941 | J10: =_xll.cmdty.udfs.BCOBS($B10,J$7,B$5,C$5,D$5) -> 1.130318255 | K10: =_xll.cmdty.udfs.BCOBS($B10,K$7,B$5,C$5,D$5) -> -1.492809753 | L10: =_xll.cmdty.udfs.BCD($B10,L$7) -> 9 | M10: =_xll.cmdty.udfs.BCD($B10,M$7) -> 7.5 | N10: 4425 | O10: =_xll.cmdty.udfs.BCSTL("ESU2023|4425P") -> ESU23|4425P | P10: =_xll.cmdty.udfs.BCD($O10,P$7) -> 6.25 | Q10: =_xll.cmdty.udfs.BCOBS($O10,Q$7,B$5,C$5,D$5) -> 0.1286935139 | R10: =_xll.cmdty.udfs.BCD($O10,R$7) -> 6.5 | S10: =_xll.cmdty.udfs.BCD($O10,S$7) -> 6.75 | T10: =_xll.cmdty.udfs.BCD($O10,T$7) -> 45180.43687 | U10: =_xll.cmdty.udfs.BCOBS($O10,U$7,B$5,C$5,D$5) -> -0.1876846446 | V10: =_xll.cmdty.udfs.BCOBS($O10,V$7,B$5,C$5,D$5) -> 0.004532293941 | W10: =_xll.cmdty.udfs.BCOBS($O10,W$7,B$5,C$5,D$5) -> 1.130318255 | X10: =_xll.cmdty.udfs.BCOBS($O10,X$7,B$5,C$5,D$5) -> -1.977848375 | Y10: =_xll.cmdty.udfs.BCD($O10,Y$7) -> 355 | Z10: =_xll.cmdty.udfs.BCD($O10,Z$7) -> -5.75 | AB10: Delta | AC10: =IFERROR(IF(AC$7="Call",INDEX($C$8:$V501,MATCH(AC$8,$N$8:$N$500,0),6),INDEX($C$8:$V501,MATCH(AC$8,$N$8:$N$500,0),19))*SIGN(AC$6),0) -> -0.1061675849 | AD10: =IFERROR(IF(AD$7="Call",INDEX($C$8:$V501,MATCH(AD$8,$N$8:$N$500,0),6),INDEX($C$8:$V501,MATCH(AD$8,$N$8:$N$500,0),19))*SIGN(AD$6),0) -> 0.5145240485 | AE10: =IFERROR(IF(AE$7="Call",INDEX($C$8:$V501,MATCH(AE$8,$N$8:$N$500,0),6),INDEX($C$8:$V501,MATCH(AE$8,$N$8:$N$500,0),19))*SIGN(AE$6),0) -> 0 | AF10: =IFERROR(IF(AF$7="Call",INDEX($C$8:$V501,MATCH(AF$8,$N$8:$N$500,0),6),INDEX($C$8:$V501,MATCH(AF$8,$N$8:$N$500,0),19))*SIGN(AF$6),0) -> 0 | AK10: Last-to-Breakeven (%) | AL10: =IF(AL5<>"",AL5/$AC$4-1,"") -> 
B11: =_xll.cmdty.udfs.BCSTL("ESU2023|4430C") -> ESU23|4430C | C11: =_xll.cmdty.udfs.BCD($B11,C$7) -> 54.5 | D11: =_xll.cmdty.udfs.BCOBS($B11,D$7,B$5,C$5,D$5) -> 0.1249100361 | E11: =_xll.cmdty.udfs.BCD($B11,E$7) -> 54.75 | F11: =_xll.cmdty.udfs.BCD($B11,F$7) -> 55.25 | G11: =_xll.cmdty.udfs.BCD($B11,G$7) -> 45180.4377 | H11: =_xll.cmdty.udfs.BCOBS($B11,H$7,B$5,C$5,D$5) -> 0.7955972126 | I11: =_xll.cmdty.udfs.BCOBS($B11,I$7,B$5,C$5,D$5) -> 0.004963301489 | J11: =_xll.cmdty.udfs.BCOBS($B11,J$7,B$5,C$5,D$5) -> 1.237808128 | K11: =_xll.cmdty.udfs.BCOBS($B11,K$7,B$5,C$5,D$5) -> -2.191761167 | L11: =_xll.cmdty.udfs.BCD($B11,L$7) -> 11 | M11: =_xll.cmdty.udfs.BCD($B11,M$7) -> 9.5 | N11: 4430 | O11: =_xll.cmdty.udfs.BCSTL("ESU2023|4430P") -> ESU23|4430P | P11: =_xll.cmdty.udfs.BCD($O11,P$7) -> 8.5 | Q11: =_xll.cmdty.udfs.BCOBS($O11,Q$7,B$5,C$5,D$5) -> 0.1376207261 | R11: =_xll.cmdty.udfs.BCD($O11,R$7) -> 7.25 | S11: =_xll.cmdty.udfs.BCD($O11,S$7) -> 7.75 | T11: =_xll.cmdty.udfs.BCD($O11,T$7) -> 45180.42107 | U11: =_xll.cmdty.udfs.BCOBS($O11,U$7,B$5,C$5,D$5) -> -0.2261787395 | V11: =_xll.cmdty.udfs.BCOBS($O11,V$7,B$5,C$5,D$5) -> 0.004963301489 | W11: =_xll.cmdty.udfs.BCOBS($O11,W$7,B$5,C$5,D$5) -> 1.237808128 | X11: =_xll.cmdty.udfs.BCOBS($O11,X$7,B$5,C$5,D$5) -> -2.366879541 | Y11: =_xll.cmdty.udfs.BCD($O11,Y$7) -> 164 | Z11: =_xll.cmdty.udfs.BCD($O11,Z$7) -> -4.75 | AL11: =IF(AL6<>"",AL6/$AC$4-1,"") ->  | AM11: Historic Vol | AN11: ='Sheet 1'!S37 -> 0.1114563111
B12: =_xll.cmdty.udfs.BCSTL("ESU2023|4440C") -> ESU23|4440C | C12: =_xll.cmdty.udfs.BCD($B12,C$7) -> 46.75 | D12: =_xll.cmdty.udfs.BCOBS($B12,D$7,B$5,C$5,D$5) -> 0.1243148823 | E12: =_xll.cmdty.udfs.BCD($B12,E$7) -> 46.75 | F12: =_xll.cmdty.udfs.BCD($B12,F$7) -> 47.25 | G12: =_xll.cmdty.udfs.BCD($B12,G$7) -> 45180.43757 | H12: =_xll.cmdty.udfs.BCOBS($B12,H$7,B$5,C$5,D$5) -> 0.7443153947 | I12: =_xll.cmdty.udfs.BCOBS($B12,I$7,B$5,C$5,D$5) -> 0.005791695903 | J12: =_xll.cmdty.udfs.BCOBS($B12,J$7,B$5,C$5,D$5) -> 1.444403142 | K12: =_xll.cmdty.udfs.BCOBS($B12,K$7,B$5,C$5,D$5) -> -2.451742792 | L12: =_xll.cmdty.udfs.BCD($B12,L$7) -> 87 | M12: =_xll.cmdty.udfs.BCD($B12,M$7) -> 8.75 | N12: 4440 | O12: =_xll.cmdty.udfs.BCSTL("ESU2023|4440P") -> ESU23|4440P | P12: =_xll.cmdty.udfs.BCD($O12,P$7) -> 11 | Q12: =_xll.cmdty.udfs.BCOBS($O12,Q$7,B$5,C$5,D$5) -> 0.1372868061 | R12: =_xll.cmdty.udfs.BCD($O12,R$7) -> 9.25 | S12: =_xll.cmdty.udfs.BCD($O12,S$7) -> 9.5 | T12: =_xll.cmdty.udfs.BCD($O12,T$7) -> 45180.42287 | U12: =_xll.cmdty.udfs.BCOBS($O12,U$7,B$5,C$5,D$5) -> -0.27545243 | V12: =_xll.cmdty.udfs.BCOBS($O12,V$7,B$5,C$5,D$5) -> 0.005791695903 | W12: =_xll.cmdty.udfs.BCOBS($O12,W$7,B$5,C$5,D$5) -> 1.444403142 | X12: =_xll.cmdty.udfs.BCOBS($O12,X$7,B$5,C$5,D$5) -> -2.621268029 | Y12: =_xll.cmdty.udfs.BCD($O12,Y$7) -> 1172 | Z12: =_xll.cmdty.udfs.BCD($O12,Z$7) -> -5.25 | AL12: =IF(AL7<>"",AL7/$AC$4-1,"") -> -0.004079579747
B13: =_xll.cmdty.udfs.BCSTL("ESU2023|4450C") -> ESU23|4450C | C13: =_xll.cmdty.udfs.BCD($B13,C$7) -> 41.25 | D13: =_xll.cmdty.udfs.BCOBS($B13,D$7,B$5,C$5,D$5) -> 0.1339227448 | E13: =_xll.cmdty.udfs.BCD($B13,E$7) -> 39.25 | F13: =_xll.cmdty.udfs.BCD($B13,F$7) -> 39.75 | G13: =_xll.cmdty.udfs.BCD($B13,G$7) -> 45180.43688 | H13: =_xll.cmdty.udfs.BCOBS($B13,H$7,B$5,C$5,D$5) -> 0.6736945639 | I13: =_xll.cmdty.udfs.BCOBS($B13,I$7,B$5,C$5,D$5) -> 0.006517825182 | J13: =_xll.cmdty.udfs.BCOBS($B13,J$7,B$5,C$5,D$5) -> 1.62549404 | K13: =_xll.cmdty.udfs.BCOBS($B13,K$7,B$5,C$5,D$5) -> -2.930705491 | L13: =_xll.cmdty.udfs.BCD($B13,L$7) -> 462 | M13: =_xll.cmdty.udfs.BCD($B13,M$7) -> 9.75 | N13: 4450 | O13: =_xll.cmdty.udfs.BCSTL("ESU2023|4450P") -> ESU23|4450P | P13: =_xll.cmdty.udfs.BCD($O13,P$7) -> 13.25 | Q13: =_xll.cmdty.udfs.BCOBS($O13,Q$7,B$5,C$5,D$5) -> 0.1324155974 | R13: =_xll.cmdty.udfs.BCD($O13,R$7) -> 11.75 | S13: =_xll.cmdty.udfs.BCD($O13,S$7) -> 12 | T13: =_xll.cmdty.udfs.BCD($O13,T$7) -> 45180.43292 | U13: =_xll.cmdty.udfs.BCOBS($O13,U$7,B$5,C$5,D$5) -> -0.3243613341 | V13: =_xll.cmdty.udfs.BCOBS($O13,V$7,B$5,C$5,D$5) -> 0.006517825182 | W13: =_xll.cmdty.udfs.BCOBS($O13,W$7,B$5,C$5,D$5) -> 1.62549404 | X13: =_xll.cmdty.udfs.BCOBS($O13,X$7,B$5,C$5,D$5) -> -2.719694847 | Y13: =_xll.cmdty.udfs.BCD($O13,Y$7) -> 2215 | Z13: =_xll.cmdty.udfs.BCD($O13,Z$7) -> -6.5 | AL13: =IF(AL8<>"",AL8/$AC$4-1,"") -> 
B14: =_xll.cmdty.udfs.BCSTL("ESU2023|4460C") -> ESU23|4460C | C14: =_xll.cmdty.udfs.BCD($B14,C$7) -> 33 | D14: =_xll.cmdty.udfs.BCOBS($B14,D$7,B$5,C$5,D$5) -> 0.1235095458 | E14: =_xll.cmdty.udfs.BCD($B14,E$7) -> 32.25 | F14: =_xll.cmdty.udfs.BCD($B14,F$7) -> 32.75 | G14: =_xll.cmdty.udfs.BCD($B14,G$7) -> 45180.43407 | H14: =_xll.cmdty.udfs.BCOBS($B14,H$7,B$5,C$5,D$5) -> 0.623013922 | I14: =_xll.cmdty.udfs.BCOBS($B14,I$7,B$5,C$5,D$5) -> 0.007075662849 | J14: =_xll.cmdty.udfs.BCOBS($B14,J$7,B$5,C$5,D$5) -> 1.764614341 | K14: =_xll.cmdty.udfs.BCOBS($B14,K$7,B$5,C$5,D$5) -> -2.846015662 | L14: =_xll.cmdty.udfs.BCD($B14,L$7) -> 168 | M14: =_xll.cmdty.udfs.BCD($B14,M$7) -> 7.5 | N14: 4460 | O14: =_xll.cmdty.udfs.BCSTL("ESU2023|4460P") -> ESU23|4460P | P14: =_xll.cmdty.udfs.BCD($O14,P$7) -> 15 | Q14: =_xll.cmdty.udfs.BCOBS($O14,Q$7,B$5,C$5,D$5) -> 0.1220887489 | R14: =_xll.cmdty.udfs.BCD($O14,R$7) -> 14.75 | S14: =_xll.cmdty.udfs.BCD($O14,S$7) -> 15 | T14: =_xll.cmdty.udfs.BCD($O14,T$7) -> 45180.43793 | U14: =_xll.cmdty.udfs.BCOBS($O14,U$7,B$5,C$5,D$5) -> -0.3755019087 | V14: =_xll.cmdty.udfs.BCOBS($O14,V$7,B$5,C$5,D$5) -> 0.007075662849 | W14: =_xll.cmdty.udfs.BCOBS($O14,W$7,B$5,C$5,D$5) -> 1.764614341 | X14: =_xll.cmdty.udfs.BCOBS($O14,X$7,B$5,C$5,D$5) -> -2.638058305 | Y14: =_xll.cmdty.udfs.BCD($O14,Y$7) -> 1273 | Z14: =_xll.cmdty.udfs.BCD($O14,Z$7) -> -8.75 | AL14: =IF(AL9<>"",AL9/$AC$4-1,"") -> 0.02039789874
B15: =_xll.cmdty.udfs.BCSTL("ESU2023|4470C") -> ESU23|4470C | C15: =_xll.cmdty.udfs.BCD($B15,C$7) -> 26 | D15: =_xll.cmdty.udfs.BCOBS($B15,D$7,B$5,C$5,D$5) -> 0.1172719126 | E15: =_xll.cmdty.udfs.BCD($B15,E$7) -> 26 | F15: =_xll.cmdty.udfs.BCD($B15,F$7) -> 26.5 | G15: =_xll.cmdty.udfs.BCD($B15,G$7) -> 45180.43793 | H15: =_xll.cmdty.udfs.BCOBS($B15,H$7,B$5,C$5,D$5) -> 0.5584428596 | I15: =_xll.cmdty.udfs.BCOBS($B15,I$7,B$5,C$5,D$5) -> 0.007411459793 | J15: =_xll.cmdty.udfs.BCOBS($B15,J$7,B$5,C$5,D$5) -> 1.848359442 | K15: =_xll.cmdty.udfs.BCOBS($B15,K$7,B$5,C$5,D$5) -> -2.803617397 | L15: =_xll.cmdty.udfs.BCD($B15,L$7) -> 394 | M15: =_xll.cmdty.udfs.BCD($B15,M$7) -> 5.75 | N15: 4470 | O15: =_xll.cmdty.udfs.BCSTL("ESU2023|4470P") -> ESU23|4470P | P15: =_xll.cmdty.udfs.BCD($O15,P$7) -> 18 | Q15: =_xll.cmdty.udfs.BCOBS($O15,Q$7,B$5,C$5,D$5) -> 0.1159135537 | R15: =_xll.cmdty.udfs.BCD($O15,R$7) -> 18.25 | S15: =_xll.cmdty.udfs.BCD($O15,S$7) -> 18.75 | T15: =_xll.cmdty.udfs.BCD($O15,T$7) -> 45180.43727 | U15: =_xll.cmdty.udfs.BCOBS($O15,U$7,B$5,C$5,D$5) -> -0.4407772028 | V15: =_xll.cmdty.udfs.BCOBS($O15,V$7,B$5,C$5,D$5) -> 0.007411459793 | W15: =_xll.cmdty.udfs.BCOBS($O15,W$7,B$5,C$5,D$5) -> 1.848359442 | X15: =_xll.cmdty.udfs.BCOBS($O15,X$7,B$5,C$5,D$5) -> -2.597778092 | Y15: =_xll.cmdty.udfs.BCD($O15,Y$7) -> 418 | Z15: =_xll.cmdty.udfs.BCD($O15,Z$7) -> -10.5
B16: =_xll.cmdty.udfs.BCSTL("ESU2023|4475C") -> ESU23|4475C | C16: =_xll.cmdty.udfs.BCD($B16,C$7) -> 24 | D16: =_xll.cmdty.udfs.BCOBS($B16,D$7,B$5,C$5,D$5) -> 0.1209013829 | E16: =_xll.cmdty.udfs.BCD($B16,E$7) -> 23 | F16: =_xll.cmdty.udfs.BCD($B16,F$7) -> 23.5 | G16: =_xll.cmdty.udfs.BCD($B16,G$7) -> 45180.43644 | H16: =_xll.cmdty.udfs.BCOBS($B16,H$7,B$5,C$5,D$5) -> 0.5217967849 | I16: =_xll.cmdty.udfs.BCOBS($B16,I$7,B$5,C$5,D$5) -> 0.007484824847 | J16: =_xll.cmdty.udfs.BCOBS($B16,J$7,B$5,C$5,D$5) -> 1.866656107 | K16: =_xll.cmdty.udfs.BCOBS($B16,K$7,B$5,C$5,D$5) -> -2.910597711 | L16: =_xll.cmdty.udfs.BCD($B16,L$7) -> 319 | M16: =_xll.cmdty.udfs.BCD($B16,M$7) -> 6 | N16: 4475 | O16: =_xll.cmdty.udfs.BCSTL("ESU2023|4475P") -> ESU23|4475P | P16: =_xll.cmdty.udfs.BCD($O16,P$7) -> 20.75 | Q16: =_xll.cmdty.udfs.BCOBS($O16,Q$7,B$5,C$5,D$5) -> 0.1182209134 | R16: =_xll.cmdty.udfs.BCD($O16,R$7) -> 20.5 | S16: =_xll.cmdty.udfs.BCD($O16,S$7) -> 20.75 | T16: =_xll.cmdty.udfs.BCD($O16,T$7) -> 45180.43494 | U16: =_xll.cmdty.udfs.BCOBS($O16,U$7,B$5,C$5,D$5) -> -0.4776651748 | V16: =_xll.cmdty.udfs.BCOBS($O16,V$7,B$5,C$5,D$5) -> 0.007484824847 | W16: =_xll.cmdty.udfs.BCOBS($O16,W$7,B$5,C$5,D$5) -> 1.866656107 | X16: =_xll.cmdty.udfs.BCOBS($O16,X$7,B$5,C$5,D$5) -> -2.673886196 | Y16: =_xll.cmdty.udfs.BCD($O16,Y$7) -> 1278 | Z16: =_xll.cmdty.udfs.BCD($O16,Z$7) -> -10.25
B17: =_xll.cmdty.udfs.BCSTL("ESU2023|4480C") -> ESU23|4480C | C17: =_xll.cmdty.udfs.BCD($B17,C$7) -> 20.5 | D17: =_xll.cmdty.udfs.BCOBS($B17,D$7,B$5,C$5,D$5) -> 0.1155274439 | E17: =_xll.cmdty.udfs.BCD($B17,E$7) -> 20.5 | F17: =_xll.cmdty.udfs.BCD($B17,F$7) -> 20.75 | G17: =_xll.cmdty.udfs.BCD($B17,G$7) -> 45180.43919 | H17: =_xll.cmdty.udfs.BCOBS($B17,H$7,B$5,C$5,D$5) -> 0.4857684736 | I17: =_xll.cmdty.udfs.BCOBS($B17,I$7,B$5,C$5,D$5) -> 0.007492322555 | J17: =_xll.cmdty.udfs.BCOBS($B17,J$7,B$5,C$5,D$5) -> 1.868525976 | K17: =_xll.cmdty.udfs.BCOBS($B17,K$7,B$5,C$5,D$5) -> -2.784555288 | L17: =_xll.cmdty.udfs.BCD($B17,L$7) -> 722 | M17: =_xll.cmdty.udfs.BCD($B17,M$7) -> 4.75 | N17: 4480 | O17: =_xll.cmdty.udfs.BCSTL("ESU2023|4480P") -> ESU23|4480P | P17: =_xll.cmdty.udfs.BCD($O17,P$7) -> 22.25 | Q17: =_xll.cmdty.udfs.BCOBS($O17,Q$7,B$5,C$5,D$5) -> 0.1128534269 | R17: =_xll.cmdty.udfs.BCD($O17,R$7) -> 22.75 | S17: =_xll.cmdty.udfs.BCD($O17,S$7) -> 23.25 | T17: =_xll.cmdty.udfs.BCD($O17,T$7) -> 45180.43713 | U17: =_xll.cmdty.udfs.BCOBS($O17,U$7,B$5,C$5,D$5) -> -0.5145240485 | V17: =_xll.cmdty.udfs.BCOBS($O17,V$7,B$5,C$5,D$5) -> 0.007492322555 | W17: =_xll.cmdty.udfs.BCOBS($O17,W$7,B$5,C$5,D$5) -> 1.868525976 | X17: =_xll.cmdty.udfs.BCOBS($O17,X$7,B$5,C$5,D$5) -> -2.547713894 | Y17: =_xll.cmdty.udfs.BCD($O17,Y$7) -> 255 | Z17: =_xll.cmdty.udfs.BCD($O17,Z$7) -> -11.75
B18: =_xll.cmdty.udfs.BCSTL("ESU2023|4490C") -> ESU23|4490C | C18: =_xll.cmdty.udfs.BCD($B18,C$7) -> 15.75 | D18: =_xll.cmdty.udfs.BCOBS($B18,D$7,B$5,C$5,D$5) -> 0.1138515811 | E18: =_xll.cmdty.udfs.BCD($B18,E$7) -> 15.75 | F18: =_xll.cmdty.udfs.BCD($B18,F$7) -> 16 | G18: =_xll.cmdty.udfs.BCD($B18,G$7) -> 45180.43874 | H18: =_xll.cmdty.udfs.BCOBS($B18,H$7,B$5,C$5,D$5) -> 0.4116006863 | I18: =_xll.cmdty.udfs.BCOBS($B18,I$7,B$5,C$5,D$5) -> 0.007311530399 | J18: =_xll.cmdty.udfs.BCOBS($B18,J$7,B$5,C$5,D$5) -> 1.823437842 | K18: =_xll.cmdty.udfs.BCOBS($B18,K$7,B$5,C$5,D$5) -> -2.675174522 | L18: =_xll.cmdty.udfs.BCD($B18,L$7) -> 439 | M18: =_xll.cmdty.udfs.BCD($B18,M$7) -> 3.75 | N18: 4490 | O18: =_xll.cmdty.udfs.BCSTL("ESU2023|4490P") -> ESU23|4490P | P18: =_xll.cmdty.udfs.BCD($O18,P$7) -> 28.5 | Q18: =_xll.cmdty.udfs.BCOBS($O18,Q$7,B$5,C$5,D$5) -> 0.116601985 | R18: =_xll.cmdty.udfs.BCD($O18,R$7) -> 28 | S18: =_xll.cmdty.udfs.BCD($O18,S$7) -> 28.25 | T18: =_xll.cmdty.udfs.BCD($O18,T$7) -> 45180.43886 | U18: =_xll.cmdty.udfs.BCOBS($O18,U$7,B$5,C$5,D$5) -> -0.5860827462 | V18: =_xll.cmdty.udfs.BCOBS($O18,V$7,B$5,C$5,D$5) -> 0.007311530399 | W18: =_xll.cmdty.udfs.BCOBS($O18,W$7,B$5,C$5,D$5) -> 1.823437842 | X18: =_xll.cmdty.udfs.BCOBS($O18,X$7,B$5,C$5,D$5) -> -2.566650068 | Y18: =_xll.cmdty.udfs.BCD($O18,Y$7) -> 233 | Z18: =_xll.cmdty.udfs.BCD($O18,Z$7) -> -11.75 | AC18: =$F$5 -> 4477.75
B19: =_xll.cmdty.udfs.BCSTL("ESU2023|4500C") -> ESU23|4500C | C19: =_xll.cmdty.udfs.BCD($B19,C$7) -> 11.75 | D19: =_xll.cmdty.udfs.BCOBS($B19,D$7,B$5,C$5,D$5) -> 0.1121836891 | E19: =_xll.cmdty.udfs.BCD($B19,E$7) -> 11.75 | F19: =_xll.cmdty.udfs.BCD($B19,F$7) -> 12 | G19: =_xll.cmdty.udfs.BCD($B19,G$7) -> 45180.43912 | H19: =_xll.cmdty.udfs.BCOBS($B19,H$7,B$5,C$5,D$5) -> 0.338581447 | I19: =_xll.cmdty.udfs.BCOBS($B19,I$7,B$5,C$5,D$5) -> 0.00688940031 | J19: =_xll.cmdty.udfs.BCOBS($B19,J$7,B$5,C$5,D$5) -> 1.718161937 | K19: =_xll.cmdty.udfs.BCOBS($B19,K$7,B$5,C$5,D$5) -> -2.477261326 | L19: =_xll.cmdty.udfs.BCD($B19,L$7) -> 3043 | M19: =_xll.cmdty.udfs.BCD($B19,M$7) -> 3 | N19: 4500 | O19: =_xll.cmdty.udfs.BCSTL("ESU2023|4500P") -> ESU23|4500P | P19: =_xll.cmdty.udfs.BCD($O19,P$7) -> 33.25 | Q19: =_xll.cmdty.udfs.BCOBS($O19,Q$7,B$5,C$5,D$5) -> 0.1078140721 | R19: =_xll.cmdty.udfs.BCD($O19,R$7) -> 33.75 | S19: =_xll.cmdty.udfs.BCD($O19,S$7) -> 34.5 | T19: =_xll.cmdty.udfs.BCD($O19,T$7) -> 45180.43642 | U19: =_xll.cmdty.udfs.BCOBS($O19,U$7,B$5,C$5,D$5) -> -0.6675806387 | V19: =_xll.cmdty.udfs.BCOBS($O19,V$7,B$5,C$5,D$5) -> 0.00688940031 | W19: =_xll.cmdty.udfs.BCOBS($O19,W$7,B$5,C$5,D$5) -> 1.718161937 | X19: =_xll.cmdty.udfs.BCOBS($O19,X$7,B$5,C$5,D$5) -> -2.190997935 | Y19: =_xll.cmdty.udfs.BCD($O19,Y$7) -> 490 | Z19: =_xll.cmdty.udfs.BCD($O19,Z$7) -> -13.75
B20: =_xll.cmdty.udfs.BCSTL("ESU2023|4510C") -> ESU23|4510C | C20: =_xll.cmdty.udfs.BCD($B20,C$7) -> 9 | D20: =_xll.cmdty.udfs.BCOBS($B20,D$7,B$5,C$5,D$5) -> 0.1138423767 | E20: =_xll.cmdty.udfs.BCD($B20,E$7) -> 8.5 | F20: =_xll.cmdty.udfs.BCD($B20,F$7) -> 8.75 | G20: =_xll.cmdty.udfs.BCD($B20,G$7) -> 45180.43708 | H20: =_xll.cmdty.udfs.BCOBS($B20,H$7,B$5,C$5,D$5) -> 0.2754723084 | I20: =_xll.cmdty.udfs.BCOBS($B20,I$7,B$5,C$5,D$5) -> 0.006269562228 | J20: =_xll.cmdty.udfs.BCOBS($B20,J$7,B$5,C$5,D$5) -> 1.563579223 | K20: =_xll.cmdty.udfs.BCOBS($B20,K$7,B$5,C$5,D$5) -> -2.293425745 | L20: =_xll.cmdty.udfs.BCD($B20,L$7) -> 414 | M20: =_xll.cmdty.udfs.BCD($B20,M$7) -> 2.5 | N20: 4510 | O20: =_xll.cmdty.udfs.BCSTL("ESU2023|4510P") -> ESU23|4510P | P20: =_xll.cmdty.udfs.BCD($O20,P$7) -> 39 | Q20: =_xll.cmdty.udfs.BCOBS($O20,Q$7,B$5,C$5,D$5) -> 0.09911042213 | R20: =_xll.cmdty.udfs.BCD($O20,R$7) -> 40.75 | S20: =_xll.cmdty.udfs.BCD($O20,S$7) -> 41.25 | T20: =_xll.cmdty.udfs.BCD($O20,T$7) -> 45180.43686 | U20: =_xll.cmdty.udfs.BCOBS($O20,U$7,B$5,C$5,D$5) -> -0.7536826754 | V20: =_xll.cmdty.udfs.BCOBS($O20,V$7,B$5,C$5,D$5) -> 0.006269562228 | W20: =_xll.cmdty.udfs.BCOBS($O20,W$7,B$5,C$5,D$5) -> 1.563579223 | X20: =_xll.cmdty.udfs.BCOBS($O20,X$7,B$5,C$5,D$5) -> -1.717154032 | Y20: =_xll.cmdty.udfs.BCD($O20,Y$7) -> 175 | Z20: =_xll.cmdty.udfs.BCD($O20,Z$7) -> -15.5
B21: =_xll.cmdty.udfs.BCSTL("ESU2023|4520C") -> ESU23|4520C | C21: =_xll.cmdty.udfs.BCD($B21,C$7) -> 6.25 | D21: =_xll.cmdty.udfs.BCOBS($B21,D$7,B$5,C$5,D$5) -> 0.1114226665 | E21: =_xll.cmdty.udfs.BCD($B21,E$7) -> 6 | F21: =_xll.cmdty.udfs.BCD($B21,F$7) -> 6.25 | G21: =_xll.cmdty.udfs.BCD($B21,G$7) -> 45180.43542 | H21: =_xll.cmdty.udfs.BCOBS($B21,H$7,B$5,C$5,D$5) -> 0.2120242585 | I21: =_xll.cmdty.udfs.BCOBS($B21,I$7,B$5,C$5,D$5) -> 0.005511581304 | J21: =_xll.cmdty.udfs.BCOBS($B21,J$7,B$5,C$5,D$5) -> 1.374544777 | K21: =_xll.cmdty.udfs.BCOBS($B21,K$7,B$5,C$5,D$5) -> -1.949851261 | L21: =_xll.cmdty.udfs.BCD($B21,L$7) -> 419 | M21: =_xll.cmdty.udfs.BCD($B21,M$7) -> 1.8 | N21: 4520 | O21: =_xll.cmdty.udfs.BCSTL("ESU2023|4520P") -> ESU23|4520P | P21: =_xll.cmdty.udfs.BCD($O21,P$7) -> 45.5 | Q21: =_xll.cmdty.udfs.BCOBS($O21,Q$7,B$5,C$5,D$5) -> 0.08737188625 | R21: =_xll.cmdty.udfs.BCD($O21,R$7) -> 48 | S21: =_xll.cmdty.udfs.BCD($O21,S$7) -> 48.75 | T21: =_xll.cmdty.udfs.BCD($O21,T$7) -> 45180.39311 | U21: =_xll.cmdty.udfs.BCOBS($O21,U$7,B$5,C$5,D$5) -> -0.8465229672 | V21: =_xll.cmdty.udfs.BCOBS($O21,V$7,B$5,C$5,D$5) -> 0.005511581304 | W21: =_xll.cmdty.udfs.BCOBS($O21,W$7,B$5,C$5,D$5) -> 1.374544777 | X21: =_xll.cmdty.udfs.BCOBS($O21,X$7,B$5,C$5,D$5) -> -1.083819442 | Y21: =_xll.cmdty.udfs.BCD($O21,Y$7) -> 130 | Z21: =_xll.cmdty.udfs.BCD($O21,Z$7) -> -17.25
B22: =_xll.cmdty.udfs.BCSTL("ESU2023|4525C") -> ESU23|4525C | C22: =_xll.cmdty.udfs.BCD($B22,C$7) -> 4.5 | D22: =_xll.cmdty.udfs.BCOBS($B22,D$7,B$5,C$5,D$5) -> 0.1051059895 | E22: =_xll.cmdty.udfs.BCD($B22,E$7) -> 5 | F22: =_xll.cmdty.udfs.BCD($B22,F$7) -> 5.25 | G22: =_xll.cmdty.udfs.BCD($B22,G$7) -> 45180.424 | H22: =_xll.cmdty.udfs.BCOBS($B22,H$7,B$5,C$5,D$5) -> 0.1714105043 | I22: =_xll.cmdty.udfs.BCOBS($B22,I$7,B$5,C$5,D$5) -> 0.005101473267 | J22: =_xll.cmdty.udfs.BCOBS($B22,J$7,B$5,C$5,D$5) -> 1.272267077 | K22: =_xll.cmdty.udfs.BCOBS($B22,K$7,B$5,C$5,D$5) -> -1.618189941 | L22: =_xll.cmdty.udfs.BCD($B22,L$7) -> 930 | M22: =_xll.cmdty.udfs.BCD($B22,M$7) -> 0.8 | N22: 4525 | O22: =_xll.cmdty.udfs.BCSTL("ESU2023|4525P") -> ESU23|4525P | P22: =_xll.cmdty.udfs.BCD($O22,P$7) -> 56.75 | Q22: =_xll.cmdty.udfs.BCOBS($O22,Q$7,B$5,C$5,D$5) -> 0.1423235989 | R22: =_xll.cmdty.udfs.BCD($O22,R$7) -> 52 | S22: =_xll.cmdty.udfs.BCD($O22,S$7) -> 52.75 | T22: =_xll.cmdty.udfs.BCD($O22,T$7) -> 45180.42652 | U22: =_xll.cmdty.udfs.BCOBS($O22,U$7,B$5,C$5,D$5) -> -0.7570063578 | V22: =_xll.cmdty.udfs.BCOBS($O22,V$7,B$5,C$5,D$5) -> 0.005101473267 | W22: =_xll.cmdty.udfs.BCOBS($O22,W$7,B$5,C$5,D$5) -> 1.272267077 | X22: =_xll.cmdty.udfs.BCOBS($O22,X$7,B$5,C$5,D$5) -> -2.494712401 | Y22: =_xll.cmdty.udfs.BCD($O22,Y$7) -> 150 | Z22: =_xll.cmdty.udfs.BCD($O22,Z$7) -> -10
B23: =_xll.cmdty.udfs.BCSTL("ESU2023|4530C") -> ESU23|4530C | C23: =_xll.cmdty.udfs.BCD($B23,C$7) -> 4.6 | D23: =_xll.cmdty.udfs.BCOBS($B23,D$7,B$5,C$5,D$5) -> 0.1129703321 | E23: =_xll.cmdty.udfs.BCD($B23,E$7) -> 4.15 | F23: =_xll.cmdty.udfs.BCD($B23,F$7) -> 4.3 | G23: =_xll.cmdty.udfs.BCD($B23,G$7) -> 45180.43686 | H23: =_xll.cmdty.udfs.BCOBS($B23,H$7,B$5,C$5,D$5) -> 0.1647397452 | I23: =_xll.cmdty.udfs.BCOBS($B23,I$7,B$5,C$5,D$5) -> 0.00468164141 | J23: =_xll.cmdty.udfs.BCOBS($B23,J$7,B$5,C$5,D$5) -> 1.167564332 | K23: =_xll.cmdty.udfs.BCOBS($B23,K$7,B$5,C$5,D$5) -> -1.69178277 | L23: =_xll.cmdty.udfs.BCD($B23,L$7) -> 370 | M23: =_xll.cmdty.udfs.BCD($B23,M$7) -> 1.55 | N23: 4530 | O23: =_xll.cmdty.udfs.BCSTL("ESU2023|4530P") -> ESU23|4530P | P23: =_xll.cmdty.udfs.BCD($O23,P$7) -> 57.5 | Q23: =_xll.cmdty.udfs.BCOBS($O23,Q$7,B$5,C$5,D$5) -> 0.1185061545 | R23: =_xll.cmdty.udfs.BCD($O23,R$7) -> 56.25 | S23: =_xll.cmdty.udfs.BCD($O23,S$7) -> 57 | T23: =_xll.cmdty.udfs.BCD($O23,T$7) -> 45180.39931 | U23: =_xll.cmdty.udfs.BCOBS($O23,U$7,B$5,C$5,D$5) -> -0.8234131182 | V23: =_xll.cmdty.udfs.BCOBS($O23,V$7,B$5,C$5,D$5) -> 0.00468164141 | W23: =_xll.cmdty.udfs.BCOBS($O23,W$7,B$5,C$5,D$5) -> 1.167564332 | X23: =_xll.cmdty.udfs.BCOBS($O23,X$7,B$5,C$5,D$5) -> -1.675204384 | Y23: =_xll.cmdty.udfs.BCD($O23,Y$7) -> 74 | Z23: =_xll.cmdty.udfs.BCD($O23,Z$7) -> -13.75
B24: =_xll.cmdty.udfs.BCSTL("ESU2023|4540C") -> ESU23|4540C | C24: =_xll.cmdty.udfs.BCD($B24,C$7) -> 2.5 | D24: =_xll.cmdty.udfs.BCOBS($B24,D$7,B$5,C$5,D$5) -> 0.1052895079 | E24: =_xll.cmdty.udfs.BCD($B24,E$7) -> 2.85 | F24: =_xll.cmdty.udfs.BCD($B24,F$7) -> 2.95 | G24: =_xll.cmdty.udfs.BCD($B24,G$7) -> 45180.42341 | H24: =_xll.cmdty.udfs.BCOBS($B24,H$7,B$5,C$5,D$5) -> 0.1061675849 | I24: =_xll.cmdty.udfs.BCOBS($B24,I$7,B$5,C$5,D$5) -> 0.003843279026 | J24: =_xll.cmdty.udfs.BCOBS($B24,J$7,B$5,C$5,D$5) -> 0.9584833859 | K24: =_xll.cmdty.udfs.BCOBS($B24,K$7,B$5,C$5,D$5) -> -1.169765205 | L24: =_xll.cmdty.udfs.BCD($B24,L$7) -> 303 | M24: =_xll.cmdty.udfs.BCD($B24,M$7) -> 0.45 | N24: 4540 | O24: =_xll.cmdty.udfs.BCSTL("ESU2023|4540P") -> ESU23|4540P | P24: =_xll.cmdty.udfs.BCD($O24,P$7) -> 64.5 | Q24: =_xll.cmdty.udfs.BCOBS($O24,Q$7,B$5,C$5,D$5) -> 0.1024308338 | R24: =_xll.cmdty.udfs.BCD($O24,R$7) -> 64.75 | S24: =_xll.cmdty.udfs.BCD($O24,S$7) -> 65.5 | T24: =_xll.cmdty.udfs.BCD($O24,T$7) -> 45180.36846 | U24: =_xll.cmdty.udfs.BCOBS($O24,U$7,B$5,C$5,D$5) -> -0.8999714488 | V24: =_xll.cmdty.udfs.BCOBS($O24,V$7,B$5,C$5,D$5) -> 0.003843279026 | W24: =_xll.cmdty.udfs.BCOBS($O24,W$7,B$5,C$5,D$5) -> 0.9584833859 | X24: =_xll.cmdty.udfs.BCOBS($O24,X$7,B$5,C$5,D$5) -> -0.9132684574 | Y24: =_xll.cmdty.udfs.BCD($O24,Y$7) -> 1 | Z24: =_xll.cmdty.udfs.BCD($O24,Z$7) -> -15.75
B25: =_xll.cmdty.udfs.BCSTL("ESU2023|4550C") -> ESU23|4550C | C25: =_xll.cmdty.udfs.BCD($B25,C$7) -> 2.1 | D25: =_xll.cmdty.udfs.BCOBS($B25,D$7,B$5,C$5,D$5) -> 0.1120831051 | E25: =_xll.cmdty.udfs.BCD($B25,E$7) -> 1.9 | F25: =_xll.cmdty.udfs.BCD($B25,F$7) -> 2 | G25: =_xll.cmdty.udfs.BCD($B25,G$7) -> 45180.43697 | H25: =_xll.cmdty.udfs.BCOBS($B25,H$7,B$5,C$5,D$5) -> 0.08716754287 | I25: =_xll.cmdty.udfs.BCOBS($B25,I$7,B$5,C$5,D$5) -> 0.00304990032 | J25: =_xll.cmdty.udfs.BCOBS($B25,J$7,B$5,C$5,D$5) -> 0.7606210129 | K25: =_xll.cmdty.udfs.BCOBS($B25,K$7,B$5,C$5,D$5) -> -1.075813069 | L25: =_xll.cmdty.udfs.BCD($B25,L$7) -> 2450 | M25: =_xll.cmdty.udfs.BCD($B25,M$7) -> 0.75 | N25: 4550 | O25: =_xll.cmdty.udfs.BCSTL("ESU2023|4550P") -> ESU23|4550P | P25: =_xll.cmdty.udfs.BCD($O25,P$7) -> 80.5 | Q25: =_xll.cmdty.udfs.BCOBS($O25,Q$7,B$5,C$5,D$5) -> 0.1714798727 | R25: =_xll.cmdty.udfs.BCD($O25,R$7) -> 74 | S25: =_xll.cmdty.udfs.BCD($O25,S$7) -> 74.75 | T25: =_xll.cmdty.udfs.BCD($O25,T$7) -> 45180.42517 | U25: =_xll.cmdty.udfs.BCOBS($O25,U$7,B$5,C$5,D$5) -> -0.8111712592 | V25: =_xll.cmdty.udfs.BCOBS($O25,V$7,B$5,C$5,D$5) -> 0.00304990032 | W25: =_xll.cmdty.udfs.BCOBS($O25,W$7,B$5,C$5,D$5) -> 0.7606210129 | X25: =_xll.cmdty.udfs.BCOBS($O25,X$7,B$5,C$5,D$5) -> -2.59184244 | Y25: =_xll.cmdty.udfs.BCD($O25,Y$7) -> 21 | Z25: =_xll.cmdty.udfs.BCD($O25,Z$7) -> -9
B26: =_xll.cmdty.udfs.BCSTL("ESU2023|4560C") -> ESU23|4560C | C26: =_xll.cmdty.udfs.BCD($B26,C$7) -> 1.15 | D26: =_xll.cmdty.udfs.BCOBS($B26,D$7,B$5,C$5,D$5) -> 0.1078126488 | E26: =_xll.cmdty.udfs.BCD($B26,E$7) -> 1.25 | F26: =_xll.cmdty.udfs.BCD($B26,F$7) -> 1.3 | G26: =_xll.cmdty.udfs.BCD($B26,G$7) -> 45180.42185 | H26: =_xll.cmdty.udfs.BCOBS($B26,H$7,B$5,C$5,D$5) -> 0.0540081827 | I26: =_xll.cmdty.udfs.BCOBS($B26,I$7,B$5,C$5,D$5) -> 0.002340165982 | J26: =_xll.cmdty.udfs.BCOBS($B26,J$7,B$5,C$5,D$5) -> 0.5836188834 | K26: =_xll.cmdty.udfs.BCOBS($B26,K$7,B$5,C$5,D$5) -> -0.717863094 | L26: =_xll.cmdty.udfs.BCD($B26,L$7) -> 46 | M26: =_xll.cmdty.udfs.BCD($B26,M$7) -> 0.25 | N26: 4560 | O26: =_xll.cmdty.udfs.BCSTL("ESU2023|4560P") -> ESU23|4560P | P26: =_xll.cmdty.udfs.BCD($O26,P$7) -> 89.75 | Q26: =_xll.cmdty.udfs.BCOBS($O26,Q$7,B$5,C$5,D$5) -> 0.1795628433 | R26: =_xll.cmdty.udfs.BCD($O26,R$7) -> 83.25 | S26: =_xll.cmdty.udfs.BCD($O26,S$7) -> 84 | T26: =_xll.cmdty.udfs.BCD($O26,T$7) -> 45180.42475 | U26: =_xll.cmdty.udfs.BCOBS($O26,U$7,B$5,C$5,D$5) -> -0.8310706936 | V26: =_xll.cmdty.udfs.BCOBS($O26,V$7,B$5,C$5,D$5) -> 0.002340165982 | W26: =_xll.cmdty.udfs.BCOBS($O26,W$7,B$5,C$5,D$5) -> 0.5836188834 | X26: =_xll.cmdty.udfs.BCOBS($O26,X$7,B$5,C$5,D$5) -> -2.523508406 | Y26: =_xll.cmdty.udfs.BCD($O26,Y$7) -> 2 | Z26: =_xll.cmdty.udfs.BCD($O26,Z$7) -> -9.25
B27: =_xll.cmdty.udfs.BCSTL("ESU2023|4570C") -> ESU23|4570C | C27: =_xll.cmdty.udfs.BCD($B27,C$7) -> 0.9 | D27: =_xll.cmdty.udfs.BCOBS($B27,D$7,B$5,C$5,D$5) -> 0.1124600105 | E27: =_xll.cmdty.udfs.BCD($B27,E$7) -> 0.8 | F27: =_xll.cmdty.udfs.BCD($B27,F$7) -> 0.85 | G27: =_xll.cmdty.udfs.BCD($B27,G$7) -> 45180.40977 | H27: =_xll.cmdty.udfs.BCOBS($B27,H$7,B$5,C$5,D$5) -> 0.04214209865 | I27: =_xll.cmdty.udfs.BCOBS($B27,I$7,B$5,C$5,D$5) -> 0.001736526875 | J27: =_xll.cmdty.udfs.BCOBS($B27,J$7,B$5,C$5,D$5) -> 0.4330760653 | K27: =_xll.cmdty.udfs.BCOBS($B27,K$7,B$5,C$5,D$5) -> -0.6135914336 | L27: =_xll.cmdty.udfs.BCD($B27,L$7) -> 309 | M27: =_xll.cmdty.udfs.BCD($B27,M$7) -> 0.3 | N27: 4570 | O27: =_xll.cmdty.udfs.BCSTL("ESU2023|4570P") -> ESU23|4570P | P27: =_xll.cmdty.udfs.BCD($O27,P$7) -> 92.5 | Q27: =_xll.cmdty.udfs.BCOBS($O27,Q$7,B$5,C$5,D$5) -> 0.0917913208 | R27: =_xll.cmdty.udfs.BCD($O27,R$7) -> 92.75 | S27: =_xll.cmdty.udfs.BCD($O27,S$7) -> 93.5 | T27: =_xll.cmdty.udfs.BCD($O27,T$7) -> 45180.37007 | U27: =_xll.cmdty.udfs.BCOBS($O27,U$7,B$5,C$5,D$5) -> -0.9827338309 | V27: =_xll.cmdty.udfs.BCOBS($O27,V$7,B$5,C$5,D$5) -> 0.001736526875 | W27: =_xll.cmdty.udfs.BCOBS($O27,W$7,B$5,C$5,D$5) -> 0.4330760653 | X27: =_xll.cmdty.udfs.BCOBS($O27,X$7,B$5,C$5,D$5) -> -0.06129607102 | Y27: =_xll.cmdty.udfs.BCD($O27,Y$7) -> 3 | Z27: =_xll.cmdty.udfs.BCD($O27,Z$7) -> -16.25
AD64: Strategy Payoff Table
AC65: % Move | AD65: -0.1 | AE65: -0.05 | AF65: -0.03 | AG65: -0.01 | AH65: 0 | AI65: 0.01 | AJ65: 0.03 | AK65: 0.05 | AL65: 0.1
AC66: Price | AD66: ='Sheet 1'!$J$30 -> 4026.15 | AE66: ='Sheet 1'!$J$31 -> 4249.825 | AF66: ='Sheet 1'!$J$32 -> 4339.295 | AG66: ='Sheet 1'!$J$33 -> 4428.765 | AH66: ='Sheet 1'!$J$34 -> 4473.5 | AI66: ='Sheet 1'!$J$35 -> 4518.235 | AJ66: ='Sheet 1'!$J$36 -> 4607.705 | AK66: ='Sheet 1'!$J$37 -> 4697.175 | AL66: ='Sheet 1'!$J$38 -> 4920.85
AC67: P/L | AD67: ='Sheet 1'!$O$30 -> -21455 | AE67: ='Sheet 1'!$O$31 -> -10271.25 | AF67: ='Sheet 1'!$O$32 -> -5797.75 | AG67: ='Sheet 1'!$O$33 -> -1324.25 | AH67: ='Sheet 1'!$O$34 -> 912.5 | AI67: ='Sheet 1'!$O$35 -> 1237.5 | AJ67: ='Sheet 1'!$O$36 -> -2147.75 | AK67: ='Sheet 1'!$O$37 -> -6621.25 | AL67: ='Sheet 1'!$O$38 -> -17805

Sheet Sheet 1
O1: calls & puts booleans
B2: Cntr Size | C2: ='Options Calculator'!$AC$5 -> 50 | O2: =IF(C4="Call",1,2) -> 1 | P2: =IF(D4="Call",1,2) -> 2 | Q2: =IF(E4="Call",1,2) -> 1 | R2: =IF(F4="Call",1,2) -> 2 | X2: Premium colected | SF2: 2
B3: Position Size | C3: ='Options Calculator'!AC$6 -> -1 | D3: ='Options Calculator'!AD$6 -> -1 | E3: ='Options Calculator'!AE$6 -> 0 | F3: ='Options Calculator'!AF$6 -> 0 | M3: Max Prof | N3: =IF($G$67>$G$66,"Infinite",MAX($G$61:$G$65)) -> 1237.5 | T3: =IF(SIGN(C3)=-1, 'Options Calculator'!AC9,0-'Options Calculator'!AC9) -> 2.5 | U3: =IF(SIGN(D3)=-1, 'Options Calculator'!AD9,0-'Options Calculator'!AD9) -> 22.25 | V3: =IF(SIGN(E3)=-1, 'Options Calculator'!AE9,0-'Options Calculator'!AE9) -> 0 | W3: =IF(SIGN(F3)=-1, 'Options Calculator'!AF9,0-'Options Calculator'!AF9) -> 0 | X3: =SUM(T3:W3) -> 24.75
B4: Call/Put | C4: ='Options Calculator'!AC$7 -> Call | D4: ='Options Calculator'!AD$7 -> Put | E4: ='Options Calculator'!AE$7 -> Call | F4: ='Options Calculator'!AF$7 -> Put | M4: Max Loss | N4: =IF($G$67<$G$66,"Infinite",MIN($G$61:$G$65)) -> Infinite
B5: Strike | C5: ='Options Calculator'!AC$8 -> 4540 | D5: ='Options Calculator'!AD$8 -> 4480 | E5: ='Options Calculator'!AE$8 -> 1100 | F5: ='Options Calculator'!AF$8 -> 1080 | M5: R/R Ratio | N5: =IF(AND(N3>0,N4<0),N3/ABS(N4),NA()) -> 
B6: Premium | C6: ='Options Calculator'!AC$9 -> 2.5 | D6: ='Options Calculator'!AD$9 -> 22.25 | E6: ='Options Calculator'!AE$9 -> 0 | F6: ='Options Calculator'!AF$9 -> 0 | K6: Increment | L6: =_xlfn.IFS('Options Calculator'!AC4<10,0.25,'Options Calculator'!AC4<30,0.5,'Options Calculator'!AC4<100,1,'Options Calculator'!AC4<300,2.5,'Options Calculator'!AC4<600,5,'Options Calculator'!AC4<1000,10,'Options Calculator'!AC4>=1000,20 ) -> 20 | M6: Breakevens | N6: =IF(K73<>0,K73,"") -> 
B7: Underlying | C7: ='Options Calculator'!AC4 -> 4473.5 | D7: =$C$7 -> 4473.5 | E7: =$C$7 -> 4473.5 | F7: 4473.5 | N7: =IF(K74<>0,K74,"") -> 
C8: ='Options Calculator'!AC4 -> 4473.5 | N8: =IF(K75<>0,K75,"") -> 4455.25
B9: P/L | C9: =(MAX(IF($O$2="Call",$C$8-C5,C5-$C$8),0)-C6)*$C$2*$C$3 -> -3200 | D9: =(MAX(IF($O$2="Call",$C$8-D5,D5-$C$8),0)-D6)*$C$2*$C$3 -> 787.5 | E9: =(MAX(IF($O$2="Call",$C$8-E5,E5-$C$8),0)-E6)*$C$2*$C$3 -> 0 | F9: =(MAX(IF($O$2="Call",$C$8-F5,F5-$C$8),0)-F6)*$C$2*$C$3 -> 0 | G9: =SUM(C9:F9) -> -2412.5 | N9: =IF(K76<>0,K76,"") -> 
N10: =IF(K77<>0,K77,"") -> 4564.75
B11: Underlying price | C11: Leg 1 | D11: Leg 2 | E11: Leg 3 | F11: Leg 4 | G11: ALL
A12: 0 | B12: =B13-$L$6 -> 4034 | C12: =(MAX(IF(O$2=1,$B12-C$5,C$5-$B12),0)-C$6)*$C$2*$C$3 -> 125 | D12: =(MAX(IF(P$2=1,$B12-D$5,D$5-B12),0)-D$6)*$C$2*D$3 -> -21187.5 | E12: =(MAX(IF(Q$2=1,$B12-E$5,E$5-$B12),0)-E$6)*$C$2*$E$3 -> 0 | F12: =(MAX(IF(R$2=1,$B12-F$5,F$5-$B12),0)-F$6)*$C$2*$F$3 -> 0 | G12: =SUM(C12:F12) -> -21062.5 | U12: =1-($V12/100) -> 0.85 | V12: 15
A13: 0 | B13: 4054 | C13: 125 | D13: -20187.5 | E13: 0 | F13: 0 | G13: -20062.5 | U13: 0.86 | V13: 14
A14: 0 | B14: 4074 | C14: 125 | D14: -19187.5 | E14: 0 | F14: 0 | G14: -19062.5 | U14: 0.87 | V14: 13
A15: 0 | B15: 4094 | C15: 125 | D15: -18187.5 | E15: 0 | F15: 0 | G15: -18062.5 | U15: 0.88 | V15: 12
A16: 0 | B16: 4114 | C16: 125 | D16: -17187.5 | E16: 0 | F16: 0 | G16: -17062.5 | U16: 0.89 | V16: 11
A17: 0 | B17: 4134 | C17: 125 | D17: -16187.5 | E17: 0 | F17: 0 | G17: -16062.5 | U17: 0.9 | V17: 10
A18: 0 | B18: 4154 | C18: 125 | D18: -15187.5 | E18: 0 | F18: 0 | G18: -15062.5 | U18: 0.905 | V18: 9.5
A19: 0 | B19: 4174 | C19: 125 | D19: -14187.5 | E19: 0 | F19: 0 | G19: -14062.5 | U19: 0.915 | V19: 8.5
A20: 0 | B20: 4194 | C20: 125 | D20: -13187.5 | E20: 0 | F20: 0 | G20: -13062.5 | U20: 0.93 | V20: 7
A21: 0 | B21: 4214 | C21: 125 | D21: -12187.5 | E21: 0 | F21: 0 | G21: -12062.5 | U21: 0.935 | V21: 6.5
A22: 0 | B22: 4234 | C22: 125 | D22: -11187.5 | E22: 0 | F22: 0 | G22: -11062.5 | U22: 0.94 | V22: 6
A23: 0 | B23: 4254 | C23: 125 | D23: -10187.5 | E23: 0 | F23: 0 | G23: -10062.5 | U23: 0.945 | V23: 5.5
A24: 0 | B24: 4274 | C24: 125 | D24: -9187.5 | E24: 0 | F24: 0 | G24: -9062.5 | U24: 0.95 | V24: 5
A25: 0 | B25: 4294 | C25: 125 | D25: -8187.5 | E25: 0 | F25: 0 | G25: -8062.5 | U25: 0.955 | V25: 4.5
A26: 0 | B26: 4314 | C26: 125 | D26: -7187.5 | E26: 0 | F26: 0 | G26: -7062.5 | U26: 0.96 | V26: 4
A27: 0 | B27: 4334 | C27: 125 | D27: -6187.5 | E27: 0 | F27: 0 | G27: -6062.5 | U27: 0.965 | V27: 3.5
A28: 0 | B28: 4354 | C28: 125 | D28: -5187.5 | E28: 0 | F28: 0 | G28: -5062.5 | U28: 0.97 | V28: 3
A29: 0 | B29: 4374 | C29: 125 | D29: -4187.5 | E29: 0 | F29: 0 | G29: -4062.5 | J29: u price | K29: Leg 1 | L29: Leg 2 | M29: Leg 3 | N29: Leg 4 | O29: ALL | U29: 0.975 | V29: 2.5
A30: 0 | B30: 4394 | C30: 125 | D30: -3187.5 | E30: 0 | F30: 0 | G30: -3062.5 | H30: =ABS('Options Calculator'!AD65)*100 -> 10 | I30: =1-($H30/100) -> 0.9 | J30: =$J$34*I30 -> 4026.15 | K30: =(MAX(IF(O$2=1,$J30-C$5,C$5-$J30),0)-C$6)*$C$2*$C$3 -> 125 | L30: =(MAX(IF(P$2=1,$J30-D$5,D$5-J30),0)-D$6)*$C$2*D$3 -> -21580 | M30: =(MAX(IF(Q$2=1,$J30-E$5,E$5-$J30),0)-E$6)*$C$2*$E$3 -> 0 | N30: =(MAX(IF(R$2=1,$J30-F$5,F$5-$J30),0)-F$6)*$C$2*$F$3 -> 0 | O30: =SUM(K30:N30) -> -21455 | U30: 0.98 | V30: 2
A31: 0 | B31: 4414 | C31: 125 | D31: -2187.5 | E31: 0 | F31: 0 | G31: -2062.5 | H31: =ABS('Options Calculator'!AE65)*100 -> 5 | I31: =1-($H31/100) -> 0.95 | J31: 4249.825 | K31: =(MAX(IF(O$2=1,$J31-C$5,C$5-$J31),0)-C$6)*$C$2*$C$3 -> 125 | L31: =(MAX(IF(P$2=1,$J31-D$5,D$5-J31),0)-D$6)*$C$2*D$3 -> -10396.25 | M31: =(MAX(IF(Q$2=1,$J31-E$5,E$5-$J31),0)-E$6)*$C$2*$E$3 -> 0 | N31: =(MAX(IF(R$2=1,$J31-F$5,F$5-$J31),0)-F$6)*$C$2*$F$3 -> 0 | O31: -10271.25 | U31: 0.985 | V31: 1.5
A32: 0 | B32: 4434 | C32: 125 | D32: -1187.5 | E32: 0 | F32: 0 | G32: -1062.5 | H32: =ABS('Options Calculator'!AF65)*100 -> 3 | I32: 0.97 | J32: 4339.295 | K32: 125 | L32: -5922.75 | M32: 0 | N32: 0 | O32: -5797.75 | U32: 0.99 | V32: 1
A33: 0 | B33: =B34-$L$6 -> 4454 | C33: 125 | D33: -187.5 | E33: 0 | F33: 0 | G33: -62.5 | H33: =ABS('Options Calculator'!AG65)*100 -> 1 | I33: 0.99 | J33: =$J$34*I33 -> 4428.765 | K33: 125 | L33: -1449.25 | M33: 0 | N33: 0 | O33: -1324.25 | U33: 0.995 | V33: 0.5
A34: 0 | B34: =ROUND('Options Calculator'!AC4,0) -> 4474 | C34: 125 | D34: 812.5 | E34: 0 | F34: 0 | G34: 937.5 | H34: 0 | I34: 1 | J34: ='Options Calculator'!$AC$4 -> 4473.5 | K34: 125 | L34: 787.5 | M34: 0 | N34: 0 | O34: =SUM(K34:N34) -> 912.5 | V34: 0
A35: 0 | B35: =B34+$L$6 -> 4494 | C35: 125 | D35: 1112.5 | E35: 0 | F35: 0 | G35: 1237.5 | H35: =ABS('Options Calculator'!AI65)*100 -> 1 | I35: =1+($H35/100) -> 1.01 | J35: =$J$34*I35 -> 4518.235 | K35: 125 | L35: 1112.5 | M35: 0 | N35: 0 | O35: =SUM(K35:N35) -> 1237.5 | U35: =$V35/100+1 -> 1.005 | V35: 0.5
A36: 0 | B36: =B35+$L$6 -> 4514 | C36: 125 | D36: 1112.5 | E36: 0 | F36: 0 | G36: 1237.5 | H36: =ABS('Options Calculator'!AJ65)*100 -> 3 | I36: =1+($H36/100) -> 1.03 | J36: 4607.705 | K36: -3260.25 | L36: 1112.5 | M36: 0 | N36: 0 | O36: -2147.75 | R36: HV | S36: =_xll.BCH_Daily_Close(_xll.BCS_HV('Options Calculator'!$B$5,30), TODAY()) -> 11.14563111 | U36: 1.01 | V36: 1
A37: 0 | B37: 4534 | C37: 125 | D37: 1112.5 | E37: 0 | F37: 0 | G37: 1237.5 | H37: =ABS('Options Calculator'!AK65)*100 -> 5 | I37: 1.05 | J37: 4697.175 | K37: -7733.75 | L37: 1112.5 | M37: 0 | N37: 0 | O37: -6621.25 | R37: HV % | S37: =S36/100 -> 0.1114563111 | U37: 1.015 | V37: 1.5
A38: 0 | B38: 4554 | C38: -575 | D38: 1112.5 | E38: 0 | F38: 0 | G38: 537.5 | H38: =ABS('Options Calculator'!AL65)*100 -> 10 | I38: 1.1 | J38: 4920.85 | K38: -18917.5 | L38: 1112.5 | M38: 0 | N38: 0 | O38: =SUM(K38:N38) -> -17805 | U38: 1.02 | V38: 2
A39: 0 | B39: 4574 | C39: -1575 | D39: 1112.5 | E39: 0 | F39: 0 | G39: -462.5 | U39: 1.025 | V39: 2.5
A40: 0 | B40: 4594 | C40: -2575 | D40: 1112.5 | E40: 0 | F40: 0 | G40: -1462.5 | U40: 1.03 | V40: 3
A41: 0 | B41: 4614 | C41: -3575 | D41: 1112.5 | E41: 0 | F41: 0 | G41: -2462.5 | U41: 1.035 | V41: 3.5
A42: 0 | B42: 4634 | C42: =(MAX(IF(O$2=1,$B42-C$5,C$5-$B42),0)-C$6)*$C$2*$C$3 -> -4575 | D42: =(MAX(IF(P$2=1,$B42-D$5,D$5-B42),0)-D$6)*$C$2*D$3 -> 1112.5 | E42: =(MAX(IF(Q$2=1,$B42-E$5,E$5-$B42),0)-E$6)*$C$2*$E$3 -> 0 | F42: =(MAX(IF(R$2=1,$B42-F$5,F$5-$B42),0)-F$6)*$C$2*$F$3 -> 0 | G42: -3462.5 | U42: 1.04 | V42: 4
A43: 0 | B43: 4654 | C43: -5575 | D43: 1112.5 | E43: 0 | F43: 0 | G43: -4462.5 | U43: 1.045 | V43: 4.5
A44: 0 | B44: 4674 | C44: -6575 | D44: 1112.5 | E44: 0 | F44: 0 | G44: -5462.5 | U44: 1.05 | V44: 5
A45: 0 | B45: 4694 | C45: -7575 | D45: 1112.5 | E45: 0 | F45: 0 | G45: -6462.5 | U45: 1.055 | V45: 5.5
A46: 0 | B46: 4714 | C46: -8575 | D46: 1112.5 | E46: 0 | F46: 0 | G46: -7462.5 | U46: 1.06 | V46: 6
A47: 0 | B47: 4734 | C47: -9575 | D47: 1112.5 | E47: 0 | F47: 0 | G47: -8462.5 | U47: 1.065 | V47: 6.5
A48: 0 | B48: 4754 | C48: -10575 | D48: 1112.5 | E48: 0 | F48: 0 | G48: -9462.5 | U48: 1.07 | V48: 7
A49: 0 | B49: 4774 | C49: -11575 | D49: 1112.5 | E49: 0 | F49: 0 | G49: -10462.5 | U49: 1.075 | V49: 7.5
A50: 0 | B50: 4794 | C50: -12575 | D50: 1112.5 | E50: 0 | F50: 0 | G50: -11462.5 | U50: 1.08 | V50: 8
A51: 0 | B51: 4814 | C51: -13575 | D51: 1112.5 | E51: 0 | F51: 0 | G51: -12462.5 | U51: 1.085 | V51: 8.5
A52: 0 | B52: 4834 | C52: -14575 | D52: 1112.5 | E52: 0 | F52: 0 | G52: -13462.5 | U52: 1.09 | V52: 9
A53: 0 | B53: 4854 | C53: -15575 | D53: 1112.5 | E53: 0 | F53: 0 | G53: -14462.5 | U53: 1.095 | V53: 9.5
A54: 0 | B54: 4874 | C54: -16575 | D54: 1112.5 | E54: 0 | F54: 0 | G54: -15462.5 | U54: 1.1 | V54: 10
A55: 0 | B55: 4894 | C55: -17575 | D55: 1112.5 | E55: 0 | F55: 0 | G55: -16462.5 | U55: 1.11 | V55: 11
A56: 0 | B56: 4914 | C56: -18575 | D56: 1112.5 | E56: 0 | F56: 0 | G56: -17462.5 | U56: 1.12 | V56: 12
A57: 0 | B57: 4934 | C57: -19575 | D57: 1112.5 | E57: 0 | F57: 0 | G57: -18462.5 | U57: 1.13 | V57: 13
A58: 0 | B58: 4954 | C58: -20575 | D58: 1112.5 | E58: 0 | F58: 0 | G58: -19462.5 | U58: 1.14 | V58: 14
A59: 0 | B59: 4974 | C59: =(MAX(IF(O$2=1,$B59-C$5,C$5-$B59),0)-C$6)*$C$2*$C$3 -> -21575 | D59: =(MAX(IF(P$2=1,$B59-D$5,D$5-B59),0)-D$6)*$C$2*D$3 -> 1112.5 | E59: =(MAX(IF(Q$2=1,$B59-E$5,E$5-$B59),0)-E$6)*$C$2*$E$3 -> 0 | F59: =(MAX(IF(R$2=1,$B59-F$5,F$5-$B59),0)-F$6)*$C$2*$F$3 -> 0 | G59: =SUM(C59:F59) -> -20462.5 | U59: 1.15 | V59: 15
B60: Underlying price | C60: Leg 1 | D60: Leg 2 | E60: Leg 3 | F60: Leg 4 | G60: ALL
B61: 0 | C61: =(MAX(IF(O$2=1,$B61-C$5,C$5-$B61),0)-C$6)*$C$2*$C$3 -> 125 | D61: =(MAX(IF(P$2=1,$B61-D$5,D$5-B61),0)-D$6)*$C$2*D$3 -> -222887.5 | E61: =(MAX(IF(Q$2=1,$B61-E$5,E$5-$B61),0)-E$6)*$C$2*$E$3 -> 0 | F61: =(MAX(IF(R$2=1,$B61-F$5,F$5-$B61),0)-F$6)*$C$2*$F$3 -> 0 | G61: =SUM(C61:F61) -> -222762.5
B62: =C5 -> 4540 | C62: 125 | D62: 1112.5 | E62: 0 | F62: 0 | G62: 1237.5
B63: =D5 -> 4480 | C63: 125 | D63: 1112.5 | E63: 0 | F63: 0 | G63: 1237.5
B64: =E5 -> 1100 | C64: 125 | D64: -167887.5 | E64: 0 | F64: 0 | G64: -167762.5
B65: =F5 -> 1080 | C65: 125 | D65: -168887.5 | E65: 0 | F65: 0 | G65: -168762.5
B66: =MAX(B62:B65) -> 4540 | C66: 125 | D66: 1112.5 | E66: 0 | F66: 0 | G66: 1237.5
B67: =B66+1 -> 4541 | C67: 75 | D67: 1112.5 | E67: 0 | F67: 0 | G67: 1187.5
B69: Underlying price | C69: Leg 1 | D69: Leg 2 | E69: Leg 3 | F69: Leg 4 | G69: ALL | J69: BE? | K69: B/E
B70: Strikes | C70: =IF(C3=0,0,C5) -> 4540 | D70: =IF(D3=0,0,D5) -> 4480 | E70: =IF(E3=0,0,E5) -> 0 | F70: =IF(F3=0,0,F5) -> 0
B71: Strikes rank | C71: =_xlfn.RANK.EQ(C70,$C70:$F70,1)+COUNTIF($C70:C70,C70)-1 -> 4 | D71: =_xlfn.RANK.EQ(D70,$C70:$F70,1)+COUNTIF($C70:D70,D70)-1 -> 3 | E71: =_xlfn.RANK.EQ(E70,$C70:$F70,1)+COUNTIF($C70:E70,E70)-1 -> 1 | F71: =_xlfn.RANK.EQ(F70,$C70:$F70,1)+COUNTIF($C70:F70,F70)-1 -> 2
B72: 0 | C72: =(MAX(IF(O$2=1,$B72-C$5,C$5-$B72),0)-C$6)*$C$2*$C$3 -> 125 | D72: =(MAX(IF(P$2=1,$B72-D$5,D$5-B72),0)-D$6)*$C$2*D$3 -> -222887.5 | E72: =(MAX(IF(Q$2=1,$B72-E$5,E$5-$B72),0)-E$6)*$C$2*$E$3 -> 0 | F72: =(MAX(IF(R$2=1,$B72-F$5,F$5-$B72),0)-F$6)*$C$2*$F$3 -> 0 | G72: =SUM(C72:F72) -> -222762.5
A73: 1 | B73: =INDEX($C$70:$F$70,MATCH(A73,$C$71:$F$71,0)) -> 0 | C73: 125 | D73: -222887.5 | E73: 0 | F73: 0 | G73: -222762.5 | J73: =IF(SIGN(G73)=SIGN(G72),0,1) -> 0 | K73: =IF(J73=0,0,B72+(B73-B72)*(0-G72)/(G73-G72)) -> 0
A74: 2 | B74: =INDEX($C$70:$F$70,MATCH(A74,$C$71:$F$71,0)) -> 0 | C74: 125 | D74: -222887.5 | E74: 0 | F74: 0 | G74: -222762.5 | J74: =IF(SIGN(G74)=SIGN(G73),0,1) -> 0 | K74: =IF(J74=0,0,B73+(B74-B73)*(0-G73)/(G74-G73)) -> 0
A75: 3 | B75: =INDEX($C$70:$F$70,MATCH(A75,$C$71:$F$71,0)) -> 4480 | C75: 125 | D75: 1112.5 | E75: 0 | F75: 0 | G75: 1237.5 | J75: =IF(SIGN(G75)=SIGN(G74),0,1) -> 1 | K75: =IF(J75=0,0,B74+(B75-B74)*(0-G74)/(G75-G74)) -> 4455.25
A76: 4 | B76: =INDEX($C$70:$F$70,MATCH(A76,$C$71:$F$71,0)) -> 4540 | C76: 125 | D76: 1112.5 | E76: 0 | F76: 0 | G76: 1237.5 | J76: =IF(SIGN(G76)=SIGN(G75),0,1) -> 0 | K76: =IF(J76=0,0,B75+(B76-B75)*(0-G75)/(G76-G75)) -> 0
B77: 1000000000 | C77: -49999772875 | D77: 1112.5 | E77: 0 | F77: 0 | G77: -4.999977176e+10 | J77: =IF(SIGN(G77)=SIGN(G76),0,1) -> 1 | K77: =IF(J77=0,0,B76+(B77-B76)*(0-G76)/(G77-G76)) -> 4564.75
